{"text_format":"3","workbook":"xlsx","n_sheets":4,"sheets":["Επισκόπηση προϋπολογισμού","Σύνοψη προϋπολογισμού","Μηνιαία έξοδα","Πρόσθετα δεδομένα"],"not_rendered":{"charts":1,"images":4,"defined_names":7,"pivot_tables":2},"read":"whole","date_system":"1900"}

{"sheet":"Επισκόπηση προϋπολογισμού","index":0,"n_rows":12,"n_cols":8,"rows_kept":12,"merged":[[2,1,2,2],[3,1,3,2],[4,1,4,2]]}
[{"$nulls":7}," "]
[null,"Υπόλοιπο"]
[null,"Προβλεπόμενο υπόλοιπο",null,{"$f":"Προβλεπόμενο_Εισόδημα-Προβλεπόμενα_Έξοδα","v":{"v":1585,"d":"1,585 €"}},null,"Προβλεπόμενα μείον έξοδα"]
[null,"Πραγματικό υπόλοιπο ",null,{"$f":"Πραγματικό_Εισόδημα-Πραγματικά_Έξοδα","v":{"v":1740,"d":"1,740 €"}},null,"Πραγματικά μείον έξοδα"]
[null,"Διαφορά",null,{"$f":"D4-D3","v":{"v":155,"d":"155 €"}},null,"Πραγματικά μείον προβλεπόμενα"]
[null,"Έσοδα",{"$nulls":3},"Έξοδα"]
[null,null,"Προβλεπόμενα","Πραγματικά",null,"Προβλεπόμενα","Πραγματικά"]
[null,"Έσοδο 1",{"v":6000,"d":"6,000 €"},{"v":5800,"d":"5,800 €"},null,{"$f":"SUM(Πίνακας_Μηνιαίων_Εξόδων[Προβλεπόμενα έξοδα])","v":{"v":7915,"d":"7,915 €"}},{"$f":"SUM(Πίνακας_Μηνιαίων_Εξόδων[Πραγματικό κόστος])","v":{"v":7860,"d":"7,860 €"}}]
[null,"Έσοδο 2",{"v":1000,"d":"1,000 €"},{"v":2300,"d":"2,300 €"}]
[null,"Επιπλέον εισόδημα",{"v":2500,"d":"2,500 €"},{"v":1500,"d":"1,500 €"}]
[null,"Συνολικά έσοδα",{"$f":"SUM(C8:C10)","v":{"v":9500,"d":"9,500 €"}},{"$f":"SUM(D8:D10)","v":{"v":9600,"d":"9,600 €"}}]
[null,"Ανάλυση πραγματικών εξόδων"]

{"sheet":"Σύνοψη προϋπολογισμού","index":1,"n_rows":40,"n_cols":7,"rows_kept":40}
[null,"Σύνοψη προϋπολογισμού",{"$nulls":4}," "]
[]
[null,"Categories","Προβλεπόμενα έξοδα ","Πραγματικό κόστος ","Διαφορά "]
[null,"Αποταμιεύσεις",{"v":200,"d":"200 €"},{"v":200,"d":"200 €"},{"v":0,"d":"0 €"}]
[null,"Επενδυτικός λογαριασμός",{"v":200,"d":"200 €"},{"v":200,"d":"200 €"},{"v":0,"d":"0 €"}]
[null,"Λογαριασμός συνταξιοδότησης",null,null,{"v":0,"d":"0 €"}]
[]
[null,"Ασφάλεια",{"v":900,"d":"900 €"},{"v":900,"d":"900 €"},{"v":0,"d":"0 €"}]
[null,"Ζωής",{"v":100,"d":"100 €"},{"v":100,"d":"100 €"},{"v":0,"d":"0 €"}]
[null,"Σπιτιού",{"v":400,"d":"400 €"},{"v":400,"d":"400 €"},{"v":0,"d":"0 €"}]
[null,"Υγεία",{"v":400,"d":"400 €"},{"v":400,"d":"400 €"},{"v":0,"d":"0 €"}]
[]
[null,"Δάνεια",{"v":200,"d":"200 €"},{"v":200,"d":"200 €"},{"v":0,"d":"0 €"}]
[]
[null,"Δώρα και φιλανθρωπία",{"v":100,"d":"100 €"},{"v":125,"d":"125 €"},{"v":-25,"d":"-25 €"}]
[]
[null,"Κατοικίδια",{"v":170,"d":"170 €"},{"v":100,"d":"100 €"},{"v":70,"d":"70 €"}]
[]
[null,"Μετακινήσεις",{"v":1425,"d":"1,425 €"},{"v":1375,"d":"1,375 €"},{"v":50,"d":"50 €"}]
[]
[null,"Παιδιά",{"v":140,"d":"140 €"},{"v":140,"d":"140 €"},{"v":0,"d":"0 €"}]
[]
[null,"Προσωπική φροντίδα",{"v":150,"d":"150 €"},{"v":140,"d":"140 €"},{"v":10,"d":"10 €"}]
[]
[null,"Στέγαση",{"v":2830,"d":"2,830 €"},{"v":2702,"d":"2,702 €"},{"v":-72,"d":"-72 €"}]
[]
[null,"Φαγητό",{"v":1100,"d":"1,100 €"},{"v":1320,"d":"1,320 €"},{"v":-220,"d":"-220 €"}]
[]
[null,"Φόροι",{"v":300,"d":"300 €"},{"v":300,"d":"300 €"},{"v":0,"d":"0 €"}]
[]
[null,"Ψυχαγωγία",{"v":400,"d":"400 €"},{"v":358,"d":"358 €"},{"v":42,"d":"42 €"}]
[null,"Αθλητικές εκδηλώσεις",{"v":0,"d":"0 €"},{"v":40,"d":"40 €"},{"v":-40,"d":"-40 €"}]
[null,"Βίντεο/DVD (Αγορά)",{"v":20,"d":"20 €"},{"v":50,"d":"50 €"},{"v":-30,"d":"-30 €"}]
[null,"Βίντεο/DVD (Ενοικίαση)",{"v":30,"d":"30 €"},{"v":20,"d":"20 €"},{"v":10,"d":"10 €"}]
[null,"Θέατρο",{"v":200,"d":"200 €"},{"v":150,"d":"150 €"},{"v":50,"d":"50 €"}]
[null,"Μουσική (CD, λήψεις κομματιών κ.λπ.)",{"v":50,"d":"50 €"},{"v":30,"d":"30 €"},{"v":20,"d":"20 €"}]
[null,"Συναυλίες",{"v":50,"d":"50 €"},{"v":40,"d":"40 €"},{"v":10,"d":"10 €"}]
[null,"Ταινίες",{"v":50,"d":"50 €"},{"v":28,"d":"28 €"},{"v":22,"d":"22 €"}]
[]
[null,"Γενικό Άθροισμα",{"v":7915,"d":"7,915 €"},{"v":7860,"d":"7,860 €"},{"v":-145,"d":"-145 €"}]

{"sheet":"Μηνιαία έξοδα","index":2,"n_rows":61,"n_cols":8,"rows_kept":61}
[{"$nulls":7}," "]
[null,"Περιγραφή","Κατηγορία","Προβλεπόμενα έξοδα","Πραγματικό κόστος","Διαφορά","Επισκόπηση πραγματικού κόστους"]
[null,"Εξωσχολικές δραστηριότητες","Παιδιά",{"v":40,"d":"40 €"},{"v":40,"d":"40 €"},{"$f":"IF(OR(Πίνακας_Μηνιαίων_Εξόδων[[#This Row],[Προβλεπόμενα έξοδα]]=\"\",Πίνακας_Μηνιαίων_Εξόδων[[#This Row],[Πραγματικό κόστος]]=\"\"),\"\",Πίνακας_Μηνιαίων_Εξόδων[[#This Row],[Προβλεπόμενα έξοδα]]-Πίνακας_Μηνιαίων_Εξόδων[[#This Row],[Πραγματικό κόστος]])","v":{"v":0,"d":"0 €"}},{"$f":"Πίνακας_Μηνιαίων_Εξόδων[[#This Row],[Πραγματικό κόστος]]","v":40}]
[null,"Ιατρικά","Παιδιά",null,null,{"$f":"IF(OR(Πίνακας_Μηνιαίων_Εξόδων[[#This Row],[Προβλεπόμενα έξοδα]]=\"\",Πίνακας_Μηνιαίων_Εξόδων[[#This Row],[Πραγματικό κόστος]]=\"\"),\"\",Πίνακας_Μηνιαίων_Εξόδων[[#This Row],[Προβλεπόμενα έξοδα]]-Πίνακας_Μηνιαίων_Εξόδων[[#This Row],[Πραγματικό κόστος]])","v":""},{"$f":"Πίνακας_Μηνιαίων_Εξόδων[[#This Row],[Πραγματικό κόστος]]","v":0}]
[null,"Σχολικά είδη","Παιδιά",null,null,{"$f":"IF(OR(Πίνακας_Μηνιαίων_Εξόδων[[#This Row],[Προβλεπόμενα έξοδα]]=\"\",Πίνακας_Μηνιαίων_Εξόδων[[#This Row],[Πραγματικό κόστος]]=\"\"),\"\",Πίνακας_Μηνιαίων_Εξόδων[[#This Row],[Προβλεπόμενα έξοδα]]-Πίνακας_Μηνιαίων_Εξόδων[[#This Row],[Πραγματικό κόστος]])","v":""},{"$f":"Πίνακας_Μηνιαίων_Εξόδων[[#This Row],[Πραγματικό κόστος]]","v":0}]
[null,"Δίδακτρα","Παιδιά",{"v":100,"d":"100 €"},{"v":100,"d":"100 €"},{"$f":"IF(OR(Πίνακας_Μηνιαίων_Εξόδων[[#This Row],[Προβλεπόμενα έξοδα]]=\"\",Πίνακας_Μηνιαίων_Εξόδων[[#This Row],[Πραγματικό κόστος]]=\"\"),\"\",Πίνακας_Μηνιαίων_Εξόδων[[#This Row],[Προβλεπόμενα έξοδα]]-Πίνακας_Μηνιαίων_Εξόδων[[#This Row],[Πραγματικό κόστος]])","v":{"v":0,"d":"0 €"}},{"$f":"Πίνακας_Μηνιαίων_Εξόδων[[#This Row],[Πραγματικό κόστος]]","v":100}]
[null,"Συναυλίες","Ψυχαγωγία",{"v":50,"d":"50 €"},{"v":40,"d":"40 €"},{"$f":"IF(OR(Πίνακας_Μηνιαίων_Εξόδων[[#This Row],[Προβλεπόμενα έξοδα]]=\"\",Πίνακας_Μηνιαίων_Εξόδων[[#This Row],[Πραγματικό κόστος]]=\"\"),\"\",Πίνακας_Μηνιαίων_Εξόδων[[#This Row],[Προβλεπόμενα έξοδα]]-Πίνακας_Μηνιαίων_Εξόδων[[#This Row],[Πραγματικό κόστος]])","v":{"v":10,"d":"10 €"}},{"$f":"Πίνακας_Μηνιαίων_Εξόδων[[#This Row],[Πραγματικό κόστος]]","v":40}]
[null,"Θέατρο","Ψυχαγωγία",{"v":200,"d":"200 €"},{"v":150,"d":"150 €"},{"$f":"IF(OR(Πίνακας_Μηνιαίων_Εξόδων[[#This Row],[Προβλεπόμενα έξοδα]]=\"\",Πίνακας_Μηνιαίων_Εξόδων[[#This Row],[Πραγματικό κόστος]]=\"\"),\"\",Πίνακας_Μηνιαίων_Εξόδων[[#This Row],[Προβλεπόμενα έξοδα]]-Πίνακας_Μηνιαίων_Εξόδων[[#This Row],[Πραγματικό κόστος]])","v":{"v":50,"d":"50 €"}},{"$f":"Πίνακας_Μηνιαίων_Εξόδων[[#This Row],[Πραγματικό κόστος]]","v":150}]
[null,"Ταινίες","Ψυχαγωγία",{"v":50,"d":"50 €"},{"v":28,"d":"28 €"},{"$f":"IF(OR(Πίνακας_Μηνιαίων_Εξόδων[[#This Row],[Προβλεπόμενα έξοδα]]=\"\",Πίνακας_Μηνιαίων_Εξόδων[[#This Row],[Πραγματικό κόστος]]=\"\"),\"\",Πίνακας_Μηνιαίων_Εξόδων[[#This Row],[Προβλεπόμενα έξοδα]]-Πίνακας_Μηνιαίων_Εξόδων[[#This Row],[Πραγματικό κόστος]])","v":{"v":22,"d":"22 €"}},{"$f":"Πίνακας_Μηνιαίων_Εξόδων[[#This Row],[Πραγματικό κόστος]]","v":28}]
[null,"Μουσική (CD, λήψεις κομματιών κ.λπ.)","Ψυχαγωγία",{"v":50,"d":"50 €"},{"v":30,"d":"30 €"},{"$f":"IF(OR(Πίνακας_Μηνιαίων_Εξόδων[[#This Row],[Προβλεπόμενα έξοδα]]=\"\",Πίνακας_Μηνιαίων_Εξόδων[[#This Row],[Πραγματικό κόστος]]=\"\"),\"\",Πίνακας_Μηνιαίων_Εξόδων[[#This Row],[Προβλεπόμενα έξοδα]]-Πίνακας_Μηνιαίων_Εξόδων[[#This Row],[Πραγματικό κόστος]])","v":{"v":20,"d":"20 €"}},{"$f":"Πίνακας_Μηνιαίων_Εξόδων[[#This Row],[Πραγματικό κόστος]]","v":30}]
[null,"Αθλητικές εκδηλώσεις","Ψυχαγωγία",{"v":0,"d":"0 €"},{"v":40,"d":"40 €"},{"$f":"IF(OR(Πίνακας_Μηνιαίων_Εξόδων[[#This Row],[Προβλεπόμενα έξοδα]]=\"\",Πίνακας_Μηνιαίων_Εξόδων[[#This Row],[Πραγματικό κόστος]]=\"\"),\"\",Πίνακας_Μηνιαίων_Εξόδων[[#This Row],[Προβλεπόμενα έξοδα]]-Πίνακας_Μηνιαίων_Εξόδων[[#This Row],[Πραγματικό κόστος]])","v":{"v":-40,"d":"-40 €"}},{"$f":"Πίνακας_Μηνιαίων_Εξόδων[[#This Row],[Πραγματικό κόστος]]","v":40}]
[null,"Βίντεο/DVD (Αγορά)","Ψυχαγωγία",{"v":20,"d":"20 €"},{"v":50,"d":"50 €"},{"$f":"IF(OR(Πίνακας_Μηνιαίων_Εξόδων[[#This Row],[Προβλεπόμενα έξοδα]]=\"\",Πίνακας_Μηνιαίων_Εξόδων[[#This Row],[Πραγματικό κόστος]]=\"\"),\"\",Πίνακας_Μηνιαίων_Εξόδων[[#This Row],[Προβλεπόμενα έξοδα]]-Πίνακας_Μηνιαίων_Εξόδων[[#This Row],[Πραγματικό κόστος]])","v":{"v":-30,"d":"-30 €"}},{"$f":"Πίνακας_Μηνιαίων_Εξόδων[[#This Row],[Πραγματικό κόστος]]","v":50}]
[null,"Βίντεο/DVD (Ενοικίαση)","Ψυχαγωγία",{"v":30,"d":"30 €"},{"v":20,"d":"20 €"},{"$f":"IF(OR(Πίνακας_Μηνιαίων_Εξόδων[[#This Row],[Προβλεπόμενα έξοδα]]=\"\",Πίνακας_Μηνιαίων_Εξόδων[[#This Row],[Πραγματικό κόστος]]=\"\"),\"\",Πίνακας_Μηνιαίων_Εξόδων[[#This Row],[Προβλεπόμενα έξοδα]]-Πίνακας_Μηνιαίων_Εξόδων[[#This Row],[Πραγματικό κόστος]])","v":{"v":10,"d":"10 €"}},{"$f":"Πίνακας_Μηνιαίων_Εξόδων[[#This Row],[Πραγματικό κόστος]]","v":20}]
[null,"Εστιατόρια","Φαγητό",{"v":1000,"d":"1,000 €"},{"v":1200,"d":"1,200 €"},{"$f":"IF(OR(Πίνακας_Μηνιαίων_Εξόδων[[#This Row],[Προβλεπόμενα έξοδα]]=\"\",Πίνακας_Μηνιαίων_Εξόδων[[#This Row],[Πραγματικό κόστος]]=\"\"),\"\",Πίνακας_Μηνιαίων_Εξόδων[[#This Row],[Προβλεπόμενα έξοδα]]-Πίνακας_Μηνιαίων_Εξόδων[[#This Row],[Πραγματικό κόστος]])","v":{"v":-200,"d":"-200 €"}},{"$f":"Πίνακας_Μηνιαίων_Εξόδων[[#This Row],[Πραγματικό κόστος]]","v":1200}]
[null,"Ψώνια","Φαγητό",{"v":100,"d":"100 €"},{"v":120,"d":"120 €"},{"$f":"IF(OR(Πίνακας_Μηνιαίων_Εξόδων[[#This Row],[Προβλεπόμενα έξοδα]]=\"\",Πίνακας_Μηνιαίων_Εξόδων[[#This Row],[Πραγματικό κόστος]]=\"\"),\"\",Πίνακας_Μηνιαίων_Εξόδων[[#This Row],[Προβλεπόμενα έξοδα]]-Πίνακας_Μηνιαίων_Εξόδων[[#This Row],[Πραγματικό κόστος]])","v":{"v":-20,"d":"-20 €"}},{"$f":"Πίνακας_Μηνιαίων_Εξόδων[[#This Row],[Πραγματικό κόστος]]","v":120}]
[null,"Φιλανθρωπία 1","Δώρα και φιλανθρωπία",{"v":75,"d":"75 €"},{"v":100,"d":"100 €"},{"$f":"IF(OR(Πίνακας_Μηνιαίων_Εξόδων[[#This Row],[Προβλεπόμενα έξοδα]]=\"\",Πίνακας_Μηνιαίων_Εξόδων[[#This Row],[Πραγματικό κόστος]]=\"\"),\"\",Πίνακας_Μηνιαίων_Εξόδων[[#This Row],[Προβλεπόμενα έξοδα]]-Πίνακας_Μηνιαίων_Εξόδων[[#This Row],[Πραγματικό κόστος]])","v":{"v":-25,"d":"-25 €"}},{"$f":"Πίνακας_Μηνιαίων_Εξόδων[[#This Row],[Πραγματικό κόστος]]","v":100}]
[null,"Φιλανθρωπία 2","Δώρα και φιλανθρωπία",{"v":25,"d":"25 €"},{"v":25,"d":"25 €"},{"$f":"IF(OR(Πίνακας_Μηνιαίων_Εξόδων[[#This Row],[Προβλεπόμενα έξοδα]]=\"\",Πίνακας_Μηνιαίων_Εξόδων[[#This Row],[Πραγματικό κόστος]]=\"\"),\"\",Πίνακας_Μηνιαίων_Εξόδων[[#This Row],[Προβλεπόμενα έξοδα]]-Πίνακας_Μηνιαίων_Εξόδων[[#This Row],[Πραγματικό κόστος]])","v":{"v":0,"d":"0 €"}},{"$f":"Πίνακας_Μηνιαίων_Εξόδων[[#This Row],[Πραγματικό κόστος]]","v":25}]
[null,"Δώρο 1","Δώρα και φιλανθρωπία",null,null,{"$f":"IF(OR(Πίνακας_Μηνιαίων_Εξόδων[[#This Row],[Προβλεπόμενα έξοδα]]=\"\",Πίνακας_Μηνιαίων_Εξόδων[[#This Row],[Πραγματικό κόστος]]=\"\"),\"\",Πίνακας_Μηνιαίων_Εξόδων[[#This Row],[Προβλεπόμενα έξοδα]]-Πίνακας_Μηνιαίων_Εξόδων[[#This Row],[Πραγματικό κόστος]])","v":""},{"$f":"Πίνακας_Μηνιαίων_Εξόδων[[#This Row],[Πραγματικό κόστος]]","v":0}]
[null,"Δώρο 2","Δώρα και φιλανθρωπία",null,null,{"$f":"IF(OR(Πίνακας_Μηνιαίων_Εξόδων[[#This Row],[Προβλεπόμενα έξοδα]]=\"\",Πίνακας_Μηνιαίων_Εξόδων[[#This Row],[Πραγματικό κόστος]]=\"\"),\"\",Πίνακας_Μηνιαίων_Εξόδων[[#This Row],[Προβλεπόμενα έξοδα]]-Πίνακας_Μηνιαίων_Εξόδων[[#This Row],[Πραγματικό κόστος]])","v":""},{"$f":"Πίνακας_Μηνιαίων_Εξόδων[[#This Row],[Πραγματικό κόστος]]","v":0}]
[null,"Συνδρομητική/Δορυφορική τηλεόραση","Στέγαση",{"v":100,"d":"100 €"},{"v":100,"d":"100 €"},{"$f":"IF(OR(Πίνακας_Μηνιαίων_Εξόδων[[#This Row],[Προβλεπόμενα έξοδα]]=\"\",Πίνακας_Μηνιαίων_Εξόδων[[#This Row],[Πραγματικό κόστος]]=\"\"),\"\",Πίνακας_Μηνιαίων_Εξόδων[[#This Row],[Προβλεπόμενα έξοδα]]-Πίνακας_Μηνιαίων_Εξόδων[[#This Row],[Πραγματικό κόστος]])","v":{"v":0,"d":"0 €"}},{"$f":"Πίνακας_Μηνιαίων_Εξόδων[[#This Row],[Πραγματικό κόστος]]","v":100}]
[null,"Ηλεκτρικό","Στέγαση",{"v":45,"d":"45 €"},{"v":50,"d":"50 €"},{"$f":"IF(OR(Πίνακας_Μηνιαίων_Εξόδων[[#This Row],[Προβλεπόμενα έξοδα]]=\"\",Πίνακας_Μηνιαίων_Εξόδων[[#This Row],[Πραγματικό κόστος]]=\"\"),\"\",Πίνακας_Μηνιαίων_Εξόδων[[#This Row],[Προβλεπόμενα έξοδα]]-Πίνακας_Μηνιαίων_Εξόδων[[#This Row],[Πραγματικό κόστος]])","v":{"v":-5,"d":"-5 €"}},{"$f":"Πίνακας_Μηνιαίων_Εξόδων[[#This Row],[Πραγματικό κόστος]]","v":50}]
[null,"Βενζίνη","Στέγαση",{"v":300,"d":"300 €"},{"v":400,"d":"400 €"},{"$f":"IF(OR(Πίνακας_Μηνιαίων_Εξόδων[[#This Row],[Προβλεπόμενα έξοδα]]=\"\",Πίνακας_Μηνιαίων_Εξόδων[[#This Row],[Πραγματικό κόστος]]=\"\"),\"\",Πίνακας_Μηνιαίων_Εξόδων[[#This Row],[Προβλεπόμενα έξοδα]]-Πίνακας_Μηνιαίων_Εξόδων[[#This Row],[Πραγματικό κόστος]])","v":{"v":-100,"d":"-100 €"}},{"$f":"Πίνακας_Μηνιαίων_Εξόδων[[#This Row],[Πραγματικό κόστος]]","v":400}]
[null,"Υπηρεσία καθαρισμού σπιτιού","Στέγαση",{"v":200,"d":"200 €"},null,{"$f":"IF(OR(Πίνακας_Μηνιαίων_Εξόδων[[#This Row],[Προβλεπόμενα έξοδα]]=\"\",Πίνακας_Μηνιαίων_Εξόδων[[#This Row],[Πραγματικό κόστος]]=\"\"),\"\",Πίνακας_Μηνιαίων_Εξόδων[[#This Row],[Προβλεπόμενα έξοδα]]-Πίνακας_Μηνιαίων_Εξόδων[[#This Row],[Πραγματικό κόστος]])","v":""},{"$f":"Πίνακας_Μηνιαίων_Εξόδων[[#This Row],[Πραγματικό κόστος]]","v":0}]
[null,"Συντήρηση","Στέγαση",{"v":200,"d":"200 €"},{"v":150,"d":"150 €"},{"$f":"IF(OR(Πίνακας_Μηνιαίων_Εξόδων[[#This Row],[Προβλεπόμενα έξοδα]]=\"\",Πίνακας_Μηνιαίων_Εξόδων[[#This Row],[Πραγματικό κόστος]]=\"\"),\"\",Πίνακας_Μηνιαίων_Εξόδων[[#This Row],[Προβλεπόμενα έξοδα]]-Πίνακας_Μηνιαίων_Εξόδων[[#This Row],[Πραγματικό κόστος]])","v":{"v":50,"d":"50 €"}},{"$f":"Πίνακας_Μηνιαίων_Εξόδων[[#This Row],[Πραγματικό κόστος]]","v":150}]
[null,"Στεγαστικό ή ενοίκιο","Στέγαση",{"v":1700,"d":"1,700 €"},{"v":1700,"d":"1,700 €"},{"$f":"IF(OR(Πίνακας_Μηνιαίων_Εξόδων[[#This Row],[Προβλεπόμενα έξοδα]]=\"\",Πίνακας_Μηνιαίων_Εξόδων[[#This Row],[Πραγματικό κόστος]]=\"\"),\"\",Πίνακας_Μηνιαίων_Εξόδων[[#This Row],[Προβλεπόμενα έξοδα]]-Πίνακας_Μηνιαίων_Εξόδων[[#This Row],[Πραγματικό κόστος]])","v":{"v":0,"d":"0 €"}},{"$f":"Πίνακας_Μηνιαίων_Εξόδων[[#This Row],[Πραγματικό κόστος]]","v":1700}]
[null,"Πετρέλαιο / Φυσικό αέριο","Στέγαση",null,null,{"$f":"IF(OR(Πίνακας_Μηνιαίων_Εξόδων[[#This Row],[Προβλεπόμενα έξοδα]]=\"\",Πίνακας_Μηνιαίων_Εξόδων[[#This Row],[Πραγματικό κόστος]]=\"\"),\"\",Πίνακας_Μηνιαίων_Εξόδων[[#This Row],[Προβλεπόμενα έξοδα]]-Πίνακας_Μηνιαίων_Εξόδων[[#This Row],[Πραγματικό κόστος]])","v":""},{"$f":"Πίνακας_Μηνιαίων_Εξόδων[[#This Row],[Πραγματικό κόστος]]","v":0}]
[null,"Υπηρεσία παροχής Internet","Στέγαση",{"v":100,"d":"100 €"},{"v":100,"d":"100 €"},{"$f":"IF(OR(Πίνακας_Μηνιαίων_Εξόδων[[#This Row],[Προβλεπόμενα έξοδα]]=\"\",Πίνακας_Μηνιαίων_Εξόδων[[#This Row],[Πραγματικό κόστος]]=\"\"),\"\",Πίνακας_Μηνιαίων_Εξόδων[[#This Row],[Προβλεπόμενα έξοδα]]-Πίνακας_Μηνιαίων_Εξόδων[[#This Row],[Πραγματικό κόστος]])","v":{"v":0,"d":"0 €"}},{"$f":"Πίνακας_Μηνιαίων_Εξόδων[[#This Row],[Πραγματικό κόστος]]","v":100}]
[null,"Τηλέφωνο (κινητό)","Στέγαση",{"v":60,"d":"60 €"},{"v":60,"d":"60 €"},{"$f":"IF(OR(Πίνακας_Μηνιαίων_Εξόδων[[#This Row],[Προβλεπόμενα έξοδα]]=\"\",Πίνακας_Μηνιαίων_Εξόδων[[#This Row],[Πραγματικό κόστος]]=\"\"),\"\",Πίνακας_Μηνιαίων_Εξόδων[[#This Row],[Προβλεπόμενα έξοδα]]-Πίνακας_Μηνιαίων_Εξόδων[[#This Row],[Πραγματικό κόστος]])","v":{"v":0,"d":"0 €"}},{"$f":"Πίνακας_Μηνιαίων_Εξόδων[[#This Row],[Πραγματικό κόστος]]","v":60}]
[null,"Τηλέφωνο (σταθερό)","Στέγαση",{"v":35,"d":"35 €"},{"v":39,"d":"39 €"},{"$f":"IF(OR(Πίνακας_Μηνιαίων_Εξόδων[[#This Row],[Προβλεπόμενα έξοδα]]=\"\",Πίνακας_Μηνιαίων_Εξόδων[[#This Row],[Πραγματικό κόστος]]=\"\"),\"\",Πίνακας_Μηνιαίων_Εξόδων[[#This Row],[Προβλεπόμενα έξοδα]]-Πίνακας_Μηνιαίων_Εξόδων[[#This Row],[Πραγματικό κόστος]])","v":{"v":-4,"d":"-4 €"}},{"$f":"Πίνακας_Μηνιαίων_Εξόδων[[#This Row],[Πραγματικό κόστος]]","v":39}]
[null,"Προμήθειες","Στέγαση",{"v":40,"d":"40 €"},{"v":55,"d":"55 €"},{"$f":"IF(OR(Πίνακας_Μηνιαίων_Εξόδων[[#This Row],[Προβλεπόμενα έξοδα]]=\"\",Πίνακας_Μηνιαίων_Εξόδων[[#This Row],[Πραγματικό κόστος]]=\"\"),\"\",Πίνακας_Μηνιαίων_Εξόδων[[#This Row],[Προβλεπόμενα έξοδα]]-Πίνακας_Μηνιαίων_Εξόδων[[#This Row],[Πραγματικό κόστος]])","v":{"v":-15,"d":"-15 €"}},{"$f":"Πίνακας_Μηνιαίων_Εξόδων[[#This Row],[Πραγματικό κόστος]]","v":55}]
[null,"Δημοτικά τέλη","Στέγαση",{"v":25,"d":"25 €"},{"v":22,"d":"22 €"},{"$f":"IF(OR(Πίνακας_Μηνιαίων_Εξόδων[[#This Row],[Προβλεπόμενα έξοδα]]=\"\",Πίνακας_Μηνιαίων_Εξόδων[[#This Row],[Πραγματικό κόστος]]=\"\"),\"\",Πίνακας_Μηνιαίων_Εξόδων[[#This Row],[Προβλεπόμενα έξοδα]]-Πίνακας_Μηνιαίων_Εξόδων[[#This Row],[Πραγματικό κόστος]])","v":{"v":3,"d":"3 €"}},{"$f":"Πίνακας_Μηνιαίων_Εξόδων[[#This Row],[Πραγματικό κόστος]]","v":22}]
[null,"Ύδρευση και αποχέτευση","Στέγαση",{"v":25,"d":"25 €"},{"v":26,"d":"26 €"},{"$f":"IF(OR(Πίνακας_Μηνιαίων_Εξόδων[[#This Row],[Προβλεπόμενα έξοδα]]=\"\",Πίνακας_Μηνιαίων_Εξόδων[[#This Row],[Πραγματικό κόστος]]=\"\"),\"\",Πίνακας_Μηνιαίων_Εξόδων[[#This Row],[Προβλεπόμενα έξοδα]]-Πίνακας_Μηνιαίων_Εξόδων[[#This Row],[Πραγματικό κόστος]])","v":{"v":-1,"d":"-1 €"}},{"$f":"Πίνακας_Μηνιαίων_Εξόδων[[#This Row],[Πραγματικό κόστος]]","v":26}]
[null,"Υγεία","Ασφάλεια",{"v":400,"d":"400 €"},{"v":400,"d":"400 €"},{"$f":"IF(OR(Πίνακας_Μηνιαίων_Εξόδων[[#This Row],[Προβλεπόμενα έξοδα]]=\"\",Πίνακας_Μηνιαίων_Εξόδων[[#This Row],[Πραγματικό κόστος]]=\"\"),\"\",Πίνακας_Μηνιαίων_Εξόδων[[#This Row],[Προβλεπόμενα έξοδα]]-Πίνακας_Μηνιαίων_Εξόδων[[#This Row],[Πραγματικό κόστος]])","v":{"v":0,"d":"0 €"}},{"$f":"Πίνακας_Μηνιαίων_Εξόδων[[#This Row],[Πραγματικό κόστος]]","v":400}]
[null,"Σπιτιού","Ασφάλεια",{"v":400,"d":"400 €"},{"v":400,"d":"400 €"},{"$f":"IF(OR(Πίνακας_Μηνιαίων_Εξόδων[[#This Row],[Προβλεπόμενα έξοδα]]=\"\",Πίνακας_Μηνιαίων_Εξόδων[[#This Row],[Πραγματικό κόστος]]=\"\"),\"\",Πίνακας_Μηνιαίων_Εξόδων[[#This Row],[Προβλεπόμενα έξοδα]]-Πίνακας_Μηνιαίων_Εξόδων[[#This Row],[Πραγματικό κόστος]])","v":{"v":0,"d":"0 €"}},{"$f":"Πίνακας_Μηνιαίων_Εξόδων[[#This Row],[Πραγματικό κόστος]]","v":400}]
[null,"Ζωής","Ασφάλεια",{"v":100,"d":"100 €"},{"v":100,"d":"100 €"},{"$f":"IF(OR(Πίνακας_Μηνιαίων_Εξόδων[[#This Row],[Προβλεπόμενα έξοδα]]=\"\",Πίνακας_Μηνιαίων_Εξόδων[[#This Row],[Πραγματικό κόστος]]=\"\"),\"\",Πίνακας_Μηνιαίων_Εξόδων[[#This Row],[Προβλεπόμενα έξοδα]]-Πίνακας_Μηνιαίων_Εξόδων[[#This Row],[Πραγματικό κόστος]])","v":{"v":0,"d":"0 €"}},{"$f":"Πίνακας_Μηνιαίων_Εξόδων[[#This Row],[Πραγματικό κόστος]]","v":100}]
[null,"Πιστωτική κάρτα 1","Δάνεια",{"v":200,"d":"200 €"},{"v":200,"d":"200 €"},{"$f":"IF(OR(Πίνακας_Μηνιαίων_Εξόδων[[#This Row],[Προβλεπόμενα έξοδα]]=\"\",Πίνακας_Μηνιαίων_Εξόδων[[#This Row],[Πραγματικό κόστος]]=\"\"),\"\",Πίνακας_Μηνιαίων_Εξόδων[[#This Row],[Προβλεπόμενα έξοδα]]-Πίνακας_Μηνιαίων_Εξόδων[[#This Row],[Πραγματικό κόστος]])","v":{"v":0,"d":"0 €"}},{"$f":"Πίνακας_Μηνιαίων_Εξόδων[[#This Row],[Πραγματικό κόστος]]","v":200}]
[null,"Πιστωτική κάρτα 2","Δάνεια",null,null,{"$f":"IF(OR(Πίνακας_Μηνιαίων_Εξόδων[[#This Row],[Προβλεπόμενα έξοδα]]=\"\",Πίνακας_Μηνιαίων_Εξόδων[[#This Row],[Πραγματικό κόστος]]=\"\"),\"\",Πίνακας_Μηνιαίων_Εξόδων[[#This Row],[Προβλεπόμενα έξοδα]]-Πίνακας_Μηνιαίων_Εξόδων[[#This Row],[Πραγματικό κόστος]])","v":""},{"$f":"Πίνακας_Μηνιαίων_Εξόδων[[#This Row],[Πραγματικό κόστος]]","v":0}]
[null,"Πιστωτική κάρτα 3","Δάνεια",null,null,{"$f":"IF(OR(Πίνακας_Μηνιαίων_Εξόδων[[#This Row],[Προβλεπόμενα έξοδα]]=\"\",Πίνακας_Μηνιαίων_Εξόδων[[#This Row],[Πραγματικό κόστος]]=\"\"),\"\",Πίνακας_Μηνιαίων_Εξόδων[[#This Row],[Προβλεπόμενα έξοδα]]-Πίνακας_Μηνιαίων_Εξόδων[[#This Row],[Πραγματικό κόστος]])","v":""},{"$f":"Πίνακας_Μηνιαίων_Εξόδων[[#This Row],[Πραγματικό κόστος]]","v":0}]
[null,"Προσωπικό","Δάνεια",null,null,{"$f":"IF(OR(Πίνακας_Μηνιαίων_Εξόδων[[#This Row],[Προβλεπόμενα έξοδα]]=\"\",Πίνακας_Μηνιαίων_Εξόδων[[#This Row],[Πραγματικό κόστος]]=\"\"),\"\",Πίνακας_Μηνιαίων_Εξόδων[[#This Row],[Προβλεπόμενα έξοδα]]-Πίνακας_Μηνιαίων_Εξόδων[[#This Row],[Πραγματικό κόστος]])","v":""},{"$f":"Πίνακας_Μηνιαίων_Εξόδων[[#This Row],[Πραγματικό κόστος]]","v":0}]
[null,"Φοιτητικό","Δάνεια",null,null,{"$f":"IF(OR(Πίνακας_Μηνιαίων_Εξόδων[[#This Row],[Προβλεπόμενα έξοδα]]=\"\",Πίνακας_Μηνιαίων_Εξόδων[[#This Row],[Πραγματικό κόστος]]=\"\"),\"\",Πίνακας_Μηνιαίων_Εξόδων[[#This Row],[Προβλεπόμενα έξοδα]]-Πίνακας_Μηνιαίων_Εξόδων[[#This Row],[Πραγματικό κόστος]])","v":""},{"$f":"Πίνακας_Μηνιαίων_Εξόδων[[#This Row],[Πραγματικό κόστος]]","v":0}]
[null,"Ρούχα","Προσωπική φροντίδα",{"v":150,"d":"150 €"},{"v":140,"d":"140 €"},{"$f":"IF(OR(Πίνακας_Μηνιαίων_Εξόδων[[#This Row],[Προβλεπόμενα έξοδα]]=\"\",Πίνακας_Μηνιαίων_Εξόδων[[#This Row],[Πραγματικό κόστος]]=\"\"),\"\",Πίνακας_Μηνιαίων_Εξόδων[[#This Row],[Προβλεπόμενα έξοδα]]-Πίνακας_Μηνιαίων_Εξόδων[[#This Row],[Πραγματικό κόστος]])","v":{"v":10,"d":"10 €"}},{"$f":"Πίνακας_Μηνιαίων_Εξόδων[[#This Row],[Πραγματικό κόστος]]","v":140}]
[null,"Στεγνοκαθαριστήριο","Προσωπική φροντίδα",null,null,{"$f":"IF(OR(Πίνακας_Μηνιαίων_Εξόδων[[#This Row],[Προβλεπόμενα έξοδα]]=\"\",Πίνακας_Μηνιαίων_Εξόδων[[#This Row],[Πραγματικό κόστος]]=\"\"),\"\",Πίνακας_Μηνιαίων_Εξόδων[[#This Row],[Προβλεπόμενα έξοδα]]-Πίνακας_Μηνιαίων_Εξόδων[[#This Row],[Πραγματικό κόστος]])","v":""},{"$f":"Πίνακας_Μηνιαίων_Εξόδων[[#This Row],[Πραγματικό κόστος]]","v":0}]
[null,"Κομμωτήριο","Προσωπική φροντίδα",null,null,{"$f":"IF(OR(Πίνακας_Μηνιαίων_Εξόδων[[#This Row],[Προβλεπόμενα έξοδα]]=\"\",Πίνακας_Μηνιαίων_Εξόδων[[#This Row],[Πραγματικό κόστος]]=\"\"),\"\",Πίνακας_Μηνιαίων_Εξόδων[[#This Row],[Προβλεπόμενα έξοδα]]-Πίνακας_Μηνιαίων_Εξόδων[[#This Row],[Πραγματικό κόστος]])","v":""},{"$f":"Πίνακας_Μηνιαίων_Εξόδων[[#This Row],[Πραγματικό κόστος]]","v":0}]
[null,"Γυμναστήριο","Προσωπική φροντίδα",null,null,{"$f":"IF(OR(Πίνακας_Μηνιαίων_Εξόδων[[#This Row],[Προβλεπόμενα έξοδα]]=\"\",Πίνακας_Μηνιαίων_Εξόδων[[#This Row],[Πραγματικό κόστος]]=\"\"),\"\",Πίνακας_Μηνιαίων_Εξόδων[[#This Row],[Προβλεπόμενα έξοδα]]-Πίνακας_Μηνιαίων_Εξόδων[[#This Row],[Πραγματικό κόστος]])","v":""},{"$f":"Πίνακας_Μηνιαίων_Εξόδων[[#This Row],[Πραγματικό κόστος]]","v":0}]
[null,"Ιατρικά","Προσωπική φροντίδα",null,null,{"$f":"IF(OR(Πίνακας_Μηνιαίων_Εξόδων[[#This Row],[Προβλεπόμενα έξοδα]]=\"\",Πίνακας_Μηνιαίων_Εξόδων[[#This Row],[Πραγματικό κόστος]]=\"\"),\"\",Πίνακας_Μηνιαίων_Εξόδων[[#This Row],[Προβλεπόμενα έξοδα]]-Πίνακας_Μηνιαίων_Εξόδων[[#This Row],[Πραγματικό κόστος]])","v":""},{"$f":"Πίνακας_Μηνιαίων_Εξόδων[[#This Row],[Πραγματικό κόστος]]","v":0}]
[null,"Φαγητό","Κατοικίδια",{"v":150,"d":"150 €"},{"v":75,"d":"75 €"},{"$f":"IF(OR(Πίνακας_Μηνιαίων_Εξόδων[[#This Row],[Προβλεπόμενα έξοδα]]=\"\",Πίνακας_Μηνιαίων_Εξόδων[[#This Row],[Πραγματικό κόστος]]=\"\"),\"\",Πίνακας_Μηνιαίων_Εξόδων[[#This Row],[Προβλεπόμενα έξοδα]]-Πίνακας_Μηνιαίων_Εξόδων[[#This Row],[Πραγματικό κόστος]])","v":{"v":75,"d":"75 €"}},{"$f":"Πίνακας_Μηνιαίων_Εξόδων[[#This Row],[Πραγματικό κόστος]]","v":75}]
[null,"Περιποίηση","Κατοικίδια",{"v":20,"d":"20 €"},{"v":25,"d":"25 €"},{"$f":"IF(OR(Πίνακας_Μηνιαίων_Εξόδων[[#This Row],[Προβλεπόμενα έξοδα]]=\"\",Πίνακας_Μηνιαίων_Εξόδων[[#This Row],[Πραγματικό κόστος]]=\"\"),\"\",Πίνακας_Μηνιαίων_Εξόδων[[#This Row],[Προβλεπόμενα έξοδα]]-Πίνακας_Μηνιαίων_Εξόδων[[#This Row],[Πραγματικό κόστος]])","v":{"v":-5,"d":"-5 €"}},{"$f":"Πίνακας_Μηνιαίων_Εξόδων[[#This Row],[Πραγματικό κόστος]]","v":25}]
[null,"Ιατρικά","Κατοικίδια",null,null,{"$f":"IF(OR(Πίνακας_Μηνιαίων_Εξόδων[[#This Row],[Προβλεπόμενα έξοδα]]=\"\",Πίνακας_Μηνιαίων_Εξόδων[[#This Row],[Πραγματικό κόστος]]=\"\"),\"\",Πίνακας_Μηνιαίων_Εξόδων[[#This Row],[Προβλεπόμενα έξοδα]]-Πίνακας_Μηνιαίων_Εξόδων[[#This Row],[Πραγματικό κόστος]])","v":""},{"$f":"Πίνακας_Μηνιαίων_Εξόδων[[#This Row],[Πραγματικό κόστος]]","v":0}]
[null,"Παιχνίδια","Κατοικίδια",null,null,{"$f":"IF(OR(Πίνακας_Μηνιαίων_Εξόδων[[#This Row],[Προβλεπόμενα έξοδα]]=\"\",Πίνακας_Μηνιαίων_Εξόδων[[#This Row],[Πραγματικό κόστος]]=\"\"),\"\",Πίνακας_Μηνιαίων_Εξόδων[[#This Row],[Προβλεπόμενα έξοδα]]-Πίνακας_Μηνιαίων_Εξόδων[[#This Row],[Πραγματικό κόστος]])","v":""},{"$f":"Πίνακας_Μηνιαίων_Εξόδων[[#This Row],[Πραγματικό κόστος]]","v":0}]
[null,"Επενδυτικός λογαριασμός","Αποταμιεύσεις",{"v":200,"d":"200 €"},{"v":200,"d":"200 €"},{"$f":"IF(OR(Πίνακας_Μηνιαίων_Εξόδων[[#This Row],[Προβλεπόμενα έξοδα]]=\"\",Πίνακας_Μηνιαίων_Εξόδων[[#This Row],[Πραγματικό κόστος]]=\"\"),\"\",Πίνακας_Μηνιαίων_Εξόδων[[#This Row],[Προβλεπόμενα έξοδα]]-Πίνακας_Μηνιαίων_Εξόδων[[#This Row],[Πραγματικό κόστος]])","v":{"v":0,"d":"0 €"}},{"$f":"Πίνακας_Μηνιαίων_Εξόδων[[#This Row],[Πραγματικό κόστος]]","v":200}]
[null,"Λογαριασμός συνταξιοδότησης","Αποταμιεύσεις",null,null,{"$f":"IF(OR(Πίνακας_Μηνιαίων_Εξόδων[[#This Row],[Προβλεπόμενα έξοδα]]=\"\",Πίνακας_Μηνιαίων_Εξόδων[[#This Row],[Πραγματικό κόστος]]=\"\"),\"\",Πίνακας_Μηνιαίων_Εξόδων[[#This Row],[Προβλεπόμενα έξοδα]]-Πίνακας_Μηνιαίων_Εξόδων[[#This Row],[Πραγματικό κόστος]])","v":""},{"$f":"Πίνακας_Μηνιαίων_Εξόδων[[#This Row],[Πραγματικό κόστος]]","v":0}]
[null,"Εθνικοί","Φόροι",{"v":300,"d":"300 €"},{"v":300,"d":"300 €"},{"$f":"IF(OR(Πίνακας_Μηνιαίων_Εξόδων[[#This Row],[Προβλεπόμενα έξοδα]]=\"\",Πίνακας_Μηνιαίων_Εξόδων[[#This Row],[Πραγματικό κόστος]]=\"\"),\"\",Πίνακας_Μηνιαίων_Εξόδων[[#This Row],[Προβλεπόμενα έξοδα]]-Πίνακας_Μηνιαίων_Εξόδων[[#This Row],[Πραγματικό κόστος]])","v":{"v":0,"d":"0 €"}},{"$f":"Πίνακας_Μηνιαίων_Εξόδων[[#This Row],[Πραγματικό κόστος]]","v":300}]
[null,"Δημοτικοί","Φόροι",null,null,{"$f":"IF(OR(Πίνακας_Μηνιαίων_Εξόδων[[#This Row],[Προβλεπόμενα έξοδα]]=\"\",Πίνακας_Μηνιαίων_Εξόδων[[#This Row],[Πραγματικό κόστος]]=\"\"),\"\",Πίνακας_Μηνιαίων_Εξόδων[[#This Row],[Προβλεπόμενα έξοδα]]-Πίνακας_Μηνιαίων_Εξόδων[[#This Row],[Πραγματικό κόστος]])","v":""},{"$f":"Πίνακας_Μηνιαίων_Εξόδων[[#This Row],[Πραγματικό κόστος]]","v":0}]
[null,"Περιφερειακοί","Φόροι",null,null,{"$f":"IF(OR(Πίνακας_Μηνιαίων_Εξόδων[[#This Row],[Προβλεπόμενα έξοδα]]=\"\",Πίνακας_Μηνιαίων_Εξόδων[[#This Row],[Πραγματικό κόστος]]=\"\"),\"\",Πίνακας_Μηνιαίων_Εξόδων[[#This Row],[Προβλεπόμενα έξοδα]]-Πίνακας_Μηνιαίων_Εξόδων[[#This Row],[Πραγματικό κόστος]])","v":""},{"$f":"Πίνακας_Μηνιαίων_Εξόδων[[#This Row],[Πραγματικό κόστος]]","v":0}]
[null,"Ναύλα λεωφορείου/ταξί","Μετακινήσεις",{"v":100,"d":"100 €"},{"v":150,"d":"150 €"},{"$f":"IF(OR(Πίνακας_Μηνιαίων_Εξόδων[[#This Row],[Προβλεπόμενα έξοδα]]=\"\",Πίνακας_Μηνιαίων_Εξόδων[[#This Row],[Πραγματικό κόστος]]=\"\"),\"\",Πίνακας_Μηνιαίων_Εξόδων[[#This Row],[Προβλεπόμενα έξοδα]]-Πίνακας_Μηνιαίων_Εξόδων[[#This Row],[Πραγματικό κόστος]])","v":{"v":-50,"d":"-50 €"}},{"$f":"Πίνακας_Μηνιαίων_Εξόδων[[#This Row],[Πραγματικό κόστος]]","v":150}]
[null,"Καύσιμα","Μετακινήσεις",{"v":450,"d":"450 €"},{"v":400,"d":"400 €"},{"$f":"IF(OR(Πίνακας_Μηνιαίων_Εξόδων[[#This Row],[Προβλεπόμενα έξοδα]]=\"\",Πίνακας_Μηνιαίων_Εξόδων[[#This Row],[Πραγματικό κόστος]]=\"\"),\"\",Πίνακας_Μηνιαίων_Εξόδων[[#This Row],[Προβλεπόμενα έξοδα]]-Πίνακας_Μηνιαίων_Εξόδων[[#This Row],[Πραγματικό κόστος]])","v":{"v":50,"d":"50 €"}},{"$f":"Πίνακας_Μηνιαίων_Εξόδων[[#This Row],[Πραγματικό κόστος]]","v":400}]
[null,"Ασφάλεια","Μετακινήσεις",{"v":300,"d":"300 €"},{"v":300,"d":"300 €"},{"$f":"IF(OR(Πίνακας_Μηνιαίων_Εξόδων[[#This Row],[Προβλεπόμενα έξοδα]]=\"\",Πίνακας_Μηνιαίων_Εξόδων[[#This Row],[Πραγματικό κόστος]]=\"\"),\"\",Πίνακας_Μηνιαίων_Εξόδων[[#This Row],[Προβλεπόμενα έξοδα]]-Πίνακας_Μηνιαίων_Εξόδων[[#This Row],[Πραγματικό κόστος]])","v":{"v":0,"d":"0 €"}},{"$f":"Πίνακας_Μηνιαίων_Εξόδων[[#This Row],[Πραγματικό κόστος]]","v":300}]
[null,"Τέλη κυκλοφορίας ","Μετακινήσεις",{"v":25,"d":"25 €"},{"v":25,"d":"25 €"},{"$f":"IF(OR(Πίνακας_Μηνιαίων_Εξόδων[[#This Row],[Προβλεπόμενα έξοδα]]=\"\",Πίνακας_Μηνιαίων_Εξόδων[[#This Row],[Πραγματικό κόστος]]=\"\"),\"\",Πίνακας_Μηνιαίων_Εξόδων[[#This Row],[Προβλεπόμενα έξοδα]]-Πίνακας_Μηνιαίων_Εξόδων[[#This Row],[Πραγματικό κόστος]])","v":{"v":0,"d":"0 €"}},{"$f":"Πίνακας_Μηνιαίων_Εξόδων[[#This Row],[Πραγματικό κόστος]]","v":25}]
[null,"Συντήρηση","Μετακινήσεις",{"v":100,"d":"100 €"},{"v":50,"d":"50 €"},{"$f":"IF(OR(Πίνακας_Μηνιαίων_Εξόδων[[#This Row],[Προβλεπόμενα έξοδα]]=\"\",Πίνακας_Μηνιαίων_Εξόδων[[#This Row],[Πραγματικό κόστος]]=\"\"),\"\",Πίνακας_Μηνιαίων_Εξόδων[[#This Row],[Προβλεπόμενα έξοδα]]-Πίνακας_Μηνιαίων_Εξόδων[[#This Row],[Πραγματικό κόστος]])","v":{"v":50,"d":"50 €"}},{"$f":"Πίνακας_Μηνιαίων_Εξόδων[[#This Row],[Πραγματικό κόστος]]","v":50}]
[null,"Τέλη στάθμευσης","Μετακινήσεις",null,null,{"$f":"IF(OR(Πίνακας_Μηνιαίων_Εξόδων[[#This Row],[Προβλεπόμενα έξοδα]]=\"\",Πίνακας_Μηνιαίων_Εξόδων[[#This Row],[Πραγματικό κόστος]]=\"\"),\"\",Πίνακας_Μηνιαίων_Εξόδων[[#This Row],[Προβλεπόμενα έξοδα]]-Πίνακας_Μηνιαίων_Εξόδων[[#This Row],[Πραγματικό κόστος]])","v":""},{"$f":"Πίνακας_Μηνιαίων_Εξόδων[[#This Row],[Πραγματικό κόστος]]","v":0}]
[null,"Δόση οχήματος","Μετακινήσεις",{"v":450,"d":"450 €"},{"v":450,"d":"450 €"},{"$f":"IF(OR(Πίνακας_Μηνιαίων_Εξόδων[[#This Row],[Προβλεπόμενα έξοδα]]=\"\",Πίνακας_Μηνιαίων_Εξόδων[[#This Row],[Πραγματικό κόστος]]=\"\"),\"\",Πίνακας_Μηνιαίων_Εξόδων[[#This Row],[Προβλεπόμενα έξοδα]]-Πίνακας_Μηνιαίων_Εξόδων[[#This Row],[Πραγματικό κόστος]])","v":{"v":0,"d":"0 €"}},{"$f":"Πίνακας_Μηνιαίων_Εξόδων[[#This Row],[Πραγματικό κόστος]]","v":450}]

{"sheet":"Πρόσθετα δεδομένα","index":3,"n_rows":17,"n_cols":6,"rows_kept":17}
[{"$nulls":5}," "]
[null,"Συγκεντρωτικός Πίνακας για το γράφημα προϋπολογισμού",null,null,"Λίστα κατηγοριών"]
[]
[null,"Κατηγορίες","Κόστος ",null,"Για να προσθέσετε μια κατηγορία, πληκτρολογήστε παρακάτω"]
[null,"Κατοικίδια",{"v":100,"d":"100 €"},null,"Παιδιά"]
[null,"Δώρα και φιλανθρωπία",{"v":125,"d":"125 €"},null,"Ψυχαγωγία"]
[null,"Προσωπική φροντίδα",{"v":140,"d":"140 €"},null,"Φαγητό"]
[null,"Παιδιά",{"v":140,"d":"140 €"},null,"Δώρα και φιλανθρωπία"]
[null,"Αποταμιεύσεις",{"v":200,"d":"200 €"},null,"Στέγαση"]
[null,"Δάνεια",{"v":200,"d":"200 €"},null,"Ασφάλεια"]
[null,"Φόροι",{"v":300,"d":"300 €"},null,"Δάνεια"]
[null,"Ψυχαγωγία",{"v":358,"d":"358 €"},null,"Προσωπική φροντίδα"]
[null,"Ασφάλεια",{"v":900,"d":"900 €"},null,"Κατοικίδια"]
[null,"Φαγητό",{"v":1320,"d":"1,320 €"},null,"Αποταμιεύσεις"]
[null,"Μετακινήσεις",{"v":1375,"d":"1,375 €"},null,"Φόροι"]
[null,"Στέγαση",{"v":2702,"d":"2,702 €"},null,"Μετακινήσεις"]
[null,"Γενικό Άθροισμα",{"v":7860,"d":"7,860 €"}]